fUST/lending_fUST_20240419
["ID","MTS","AMOUNT","RATE_DAILY","PERIOD"]
[322877409,1713461436596,-250.113721,0.00029109,2]
[322877410,1713461436607,-1022.283353,0.00029109,2]
[322877411,1713461436617,-2464.73519,0.00029109,2]
[322877412,1713461436627,-167.01626,0.00029109,2]
[322877413,1713461436637,-160.185485,0.00029109,2]
[322877414,1713461436647,-865.923177,0.00029109,2]
[322877415,1713461436657,-216.480795,0.00029109,2]
[322877416,1713461436666,-1082.958688,0.00029109,2]
[322877417,1713461436746,-190.020346,0.00029109,2]
[322877418,1713461436757,-248.198679,0.00029109,2]
[322877419,1713461436766,-153.0,0.00029123,2]
[322877420,1713461436775,-153.0,0.00029123,2]
[322877421,1713461436785,-153.0,0.00029123,2]
[322877422,1713461436794,-153.0,0.00029123,2]
[322877423,1713461436804,-153.0,0.00029123,2]
[322877424,1713461436813,-823.0,0.00029303,2]
[322877425,1713461436822,-166.666666,0.00029321,2]
[322877426,1713461436831,-1690.750135,0.00029473,2]
[322877427,1713461436841,-422.687534,0.00029473,2]
[322877428,1713461436850,-428.556001,0.00029473,2]
[322877429,1713461436861,-1022.283353,0.00029473,2]
[322877430,1713461436870,-2464.73519,0.00029473,2]
[322877431,1713461436879,-865.923177,0.00029473,2]
[322877432,1713461436889,-216.480795,0.00029473,2]
[322877433,1713461436899,-1082.958688,0.00029473,2]
[322877434,1713461436908,-248.198679,0.00029473,2]
[322877435,1713461436918,-620.00015143,0.00029628,2]
[322877436,1713461436928,-150.0,0.00029795,2]
[322877437,1713461436937,-150.0,0.00029829,2]
[322877438,1713461436946,-1690.750135,0.00029836,2]
[322877439,1713461436955,-422.687534,0.00029836,2]
[322877440,1713461436964,-428.556001,0.00029836,2]
[322877441,1713461436974,-1022.283353,0.00029836,2]
[322877442,1713461436983,-2464.73519,0.00029836,2]
[322877443,1713461436993,-865.923177,0.00029836,2]
[322877444,1713461437002,-216.480795,0.00029836,2]
[322877445,1713461437012,-1082.958688,0.00029836,2]
[322877446,1713461437022,-248.198679,0.00029836,2]
[322877447,1713461437032,-150.0,0.00029857,2]
[322877448,1713461437043,-150.0,0.00029858,2]
[322877449,1713461437055,-1226.48558105,0.00029936,4]
[322877450,1713461437064,-166.666666,0.00029962,2]
[322877451,1713461437075,-1017.25389628,0.00029987,2]
[322877452,1713461437085,-150.0,0.00029999,2]
[322877453,1713461437095,-150.0,0.00029999,2]
[322877454,1713461437108,-154.79876161,0.0003,4]
[322877455,1713461437117,-321.50032732,0.0003,30]
[322877456,1713461437127,-168.71801131,0.0003,2]
[322877457,1713461437136,-359.32334992,0.0003,2]
[322877458,1713461437146,-455000.0,0.0003,3]
[322877459,1713461437155,-154.86062544,0.0003,4]
[322877460,1713461437164,-14413.0,0.0003,30]
[322877461,1713461437173,-4043.678248,0.0003,10]
[322877462,1713461437182,-300.0,0.0003,2]
[322877463,1713461437192,-1000.0,0.0003,10]
[322877464,1713461437201,-1000.0,0.0003,30]
[322877465,1713461437210,-300.0,0.0003,2]
[322877466,1713461437219,-300.0,0.0003,2]
[322877467,1713461437228,-300.0,0.0003,2]
[322877468,1713461437237,-300.0,0.0003,2]
[322877469,1713461437247,-300.0,0.0003,2]
[322877470,1713461437256,-399.9,0.0003,2]
[322877471,1713461437264,-300.0,0.0003,2]
[322877472,1713461437275,-300.0,0.0003,2]
[322877473,1713461437286,-155.05184255,0.0003,4]
[322877474,1713461437295,-165.0,0.0003,2]
[322877475,1713461437305,-1000.0,0.0003,2]
[322877476,1713461437314,-2000.0,0.0003,7]
[322877477,1713461437323,-253.73740335,0.0003,4]
[322877478,1713461437332,-233.0,0.0003,2]
[322877479,1713461437342,-1503.48002373,0.0003001,4]
[322877480,1713461437351,-196.417914,0.00030137,2]
[322877481,1713461437361,-196.417914,0.00030137,41]
[322877482,1713461437371,-196.417914,0.00030137,80]
[322877483,1713461437381,-196.417914,0.00030137,119]
[322877484,1713461437390,-1690.750135,0.000302,2]
[322877485,1713461437399,-422.687534,0.000302,2]
[322877486,1713461437409,-428.556001,0.000302,2]
[322877487,1713461437418,-1022.283353,0.000302,2]
[322877488,1713461437427,-2464.73519,0.000302,2]
[322877489,1713461437437,-865.923177,0.000302,2]
[322877490,1713461437447,-216.480795,0.000302,2]
[322877491,1713461437456,-1082.958688,0.000302,2]
[322877492,1713461437465,-248.198679,0.000302,2]
[322877493,1713461437474,-150.92453773,0.00030213,2]
[322877494,1713461437483,-1533.7710445,0.00030242,30]
[322877495,1713461437492,-3757.12500588,0.00030242,30]
[322877496,1713461437502,-744.96989235,0.00030242,30]
[322877497,1713461437512,-823.0,0.00030479,2]
[322877498,1713461437522,-300.0,0.000305,3]
[322877499,1713461437531,-1900.0,0.000305,3]
[322877500,1713461437540,-1690.750135,0.00030564,2]
[322877501,1713461437548,-422.687534,0.00030564,2]
[322877502,1713461437558,-428.556001,0.00030564,2]
[322877503,1713461437567,-1022.283353,0.00030564,2]
[322877504,1713461437576,-2464.73519,0.00030564,2]
[322877505,1713461437585,-865.923177,0.00030564,2]
[322877506,1713461437594,-216.480795,0.00030564,2]
[322877507,1713461437605,-1082.958688,0.00030564,2]
[322877508,1713461437615,-248.198679,0.00030564,2]
[322877509,1713461437624,-166.666666,0.00030603,2]
[322877510,1713461437634,-301.84907546,0.00030721,4]
[322877511,1713461437644,-134673.2877,0.00030746,30]
[322877512,1713461437653,-622.85627988,0.000308,2]
[322877513,1713461437662,-150.0,0.00030858,2]
[322877514,1713461437671,-1001.56030029,0.00031,2]
[322877515,1713461437680,-1000.0,0.00031,31]
[322877516,1713461437689,-300.0,0.00031,3]
[322877517,1713461437700,-198.41201319,0.00031026,5]
[322877518,1713461437709,-620.00000757,0.0003111,2]
[322877519,1713461437719,-93271.57582836,0.000312,2]
[322877520,1713461437727,-603.69815092,0.00031237,7]
[322877521,1713461437736,-160.0,0.00031455,3]
[322877522,1713461437745,-1226.48558105,0.00031493,5]
[322877523,1713461437755,-1500.0,0.000315,4]
[322877524,1713461437765,-3000.0,0.000315,8]
[322877525,1713461437774,-3000.0,0.0003151,8]
[322877526,1713461437783,-3000.0,0.0003152,8]
[322877527,1713461437792,-3000.0,0.0003153,8]
[322877528,1713461437802,-3000.0,0.0003154,8]
[322877529,1713461437811,-3000.0,0.0003155,8]
[322877530,1713461437820,-3000.0,0.0003156,8]
[322877532,1713461437830,-3000.0,0.0003157,8]
[322877533,1713461437839,-3000.0,0.0003158,8]
[322877535,1713461437848,-3000.0,0.0003159,8]
[322877537,1713461437859,-3000.0,0.000316,8]
[322877539,1713461437869,-3000.0,0.0003161,8]
[322877541,1713461437878,-3000.0,0.0003162,8]
[322877543,1713461437887,-3000.0,0.0003163,8]
[322877545,1713461437896,-3000.0,0.0003164,8]
[322877547,1713461437905,-165.0,0.00031644,2]
[322877549,1713461437915,-3000.0,0.0003165,8]
[322877551,1713461437924,-3000.0,0.0003166,9]
[322877553,1713461437933,-3000.0,0.0003167,9]
[322877555,1713461437943,-3000.0,0.0003168,9]
[322877558,1713461437952,-3000.0,0.0003169,9]
[322877563,1713461437961,-3000.0,0.000317,9]
[322877564,1713461438043,-3000.0,0.0003171,9]
[322877565,1713461438053,-3000.0,0.0003172,9]
[322877566,1713461438063,-5419.657615,0.0003173,9]
[322877567,1713461438072,-1152.0,0.00031813,2]
[322877568,1713461438081,-1000.0,0.00032,2]
[322877569,1713461438092,-36786.8219106,0.00032,2]
[322877570,1713461438103,-10556.86693134,0.00032,2]
[322877571,1713461438113,-191.23373754,0.00032,4]
[322877572,1713461438122,-1000.0,0.00032,32]
[322877573,1713461438132,-300.0,0.00032,4]
[322877574,1713461438141,-160.0,0.0003201,4]
[322877575,1713461438151,-1207.39630185,0.00032028,30]
[322877576,1713461438160,-2000.0,0.000325,5]
[322877577,1713461438169,-160.0,0.00032565,5]
[322877578,1713461438178,-620.00000038,0.00032665,2]
[322877579,1713461438187,-4732.38496546,0.00032705,2]
[322877580,1713461438196,-53392.8638,0.00032746,30]
[322877581,1713461438205,-748.857976,0.00032877,2]
[322877582,1713461438214,-748.857976,0.00032877,2]
[322877583,1713461438223,-748.857976,0.00032877,2]
[322877584,1713461438233,-748.857976,0.00032877,2]
[322877585,1713461438243,-748.857976,0.00032877,2]
[322877586,1713461438252,-748.857976,0.00032877,2]
[322877587,1713461438262,-748.857976,0.00032877,2]
[322877588,1713461438271,-748.857976,0.00032877,2]
[322877589,1713461438280,-748.857976,0.00032877,2]
[322877590,1713461438290,-748.857976,0.00032877,2]
[322877591,1713461438300,-748.857976,0.00032877,2]
[322877592,1713461438309,-748.857976,0.00032877,2]
[322877593,1713461438321,-748.857976,0.00032877,2]
[322877594,1713461438332,-748.857976,0.00032877,2]
[322877595,1713461438341,-748.857976,0.00032877,2]
[322877596,1713461438353,-748.857976,0.00032877,2]
[322877597,1713461438362,-748.857976,0.00032877,2]
[322877598,1713461438372,-748.857976,0.00032877,2]
[322877599,1713461438381,-748.857976,0.00032877,2]
[322877600,1713461438390,-748.857971,0.00032877,2]
[322877601,1713461438400,-460.19,0.000329,10]
[322877602,1713461438410,-10020.32231703,0.000329,5]
[322877603,1713461438419,-796.96767371,0.000329,2]
[322877604,1713461438428,-15184.28409946,0.0003292,3]
[322877605,1713461438437,-9431.74,0.00032999,2]
[322877606,1713461438446,-9431.74,0.00032999,2]
[322877607,1713461438455,-9431.74,0.00032999,2]
[322877608,1713461438465,-7890.00503756,0.00032999,2]
[322877613,1713461439667,-417.314,0.00026625,2]
[322877614,1713461439676,-44.55304803,0.00027129,2]
[322877615,1713461439688,-340.20259645,0.00027129,2]
[322877616,1713461439697,-328.48930744,0.00027397,2]
[322877617,1713461439706,-417.0,0.00029625,2]
[322877618,1713461439716,-1541.73496244,0.00032999,2]
[322877619,1713461439725,-9431.74,0.00032999,2]
[322877620,1713461439735,-8386.58134185,0.00032999,2]
[322877621,1713461439746,-316.10001467,0.00032999,2]
[322877715,1713461443606,-171.3103817,0.00027129,2]
[322877716,1713461443617,-20705.92,0.0003199,3]
[322877717,1713461443628,-729.05864348,0.00032999,2]
[322877718,1713461443637,-9431.74,0.00032999,2]
[322877719,1713461443646,-9431.74,0.00032999,2]
[322877720,1713461443655,-9431.74,0.00032999,2]
[322877721,1713461443665,-9431.74,0.00032999,2]
[322877722,1713461443674,-106429.54969747,0.00033,2]
[322877723,1713461443684,-276.16517788,0.00033,7]
[322877724,1713461443693,-172436.42237608,0.00033,30]
[322877833,1713462638628,-154.95351395,0.00024996,2]
[322877834,1713462638637,-1108.41764981,0.00024997,2]
[322877835,1713462638648,-1184.94581303,0.00024997,2]
[322877836,1713462638659,-514.90477905,0.00024997,2]
[322877837,1713462638670,-946.52957167,0.00024997,2]
[322877838,1713462638679,-1140.00851604,0.00024997,2]
[322877865,1713462640806,-1265.96,0.00024997,2]
[322877866,1713462640904,-283.84599999,0.00024997,2]
[322877913,1713462646731,-607.31293743,0.00024997,2]
[322878092,1713463831848,-203.64379404,0.00022375,2]
[322878093,1713463831858,-703.80562609,0.00022376,2]
[322878205,1713463837865,-315.18981154,0.00022376,2]
[322878237,1713463840510,-1067.00334768,0.00022376,2]
[322878238,1713463840519,-154.95351395,0.00022398,2]
[322878239,1713463840529,-216.49147,0.00025875,2]
[322878240,1713463840538,-300.0,0.00027395,2]
[322878241,1713463840547,-300.0,0.00027395,2]
[322878242,1713463840557,-8508.54349294,0.00027396,2]
[322878243,1713463840567,-427.457747,0.00027397,2]
[322878244,1713463840576,-70.04351228,0.00027397,2]
[322878296,1713463842964,-929.95648772,0.00027397,2]
[322878298,1713463842973,-166.666666,0.00027397,2]
[322878300,1713463842982,-491.364799,0.00027397,2]
[322878302,1713463842992,-399.9,0.000279,2]
[322878304,1713463843001,-1213.98388252,0.00027938,2]
[322878306,1713463843011,-189.82449024,0.00027999,2]
[322878308,1713463843020,-261.55376796,0.00027999,2]
[322878310,1713463843029,-183.30016937,0.00027999,2]
[322878312,1713463843038,-6236.69973721,0.00028,2]
[322878433,1713463845968,-203.55170926,0.00027998,2]
[322878434,1713463845978,-73763.30026279,0.00028,2]
[322878435,1713463845988,-166.666666,0.00028038,2]
[322878436,1713463845999,-150.0,0.00028394,4]
[322878437,1713463846009,-166.666666,0.00028679,2]
[322878438,1713463846019,-300.0,0.000289,2]
[322878439,1713463846029,-228.08283221,0.00028979,2]
[322878440,1713463846038,-17254.94,0.0002899,3]
[322878441,1713463846048,-5000.0,0.00029,2]
[322878442,1713463846059,-1213.9838825,0.00029179,2]
[322878443,1713463846067,-166.666666,0.00029321,2]
[322878444,1713463846077,-620.00000002,0.00029555,2]
[322878445,1713463846090,-420.0,0.00029605,2]
[322878446,1713463846099,-300.0,0.000299,2]
[322878448,1713463846108,-166.666666,0.00029962,2]
[322878450,1713463846118,-154.93802479,0.0003,4]
[322878451,1713463846128,-320.52850985,0.0003,30]
[322878452,1713463846137,-154.93802479,0.0003,4]
[322878453,1713463846146,-155.0,0.0003,2]
[322878454,1713463846156,-420.0,0.00030135,2]
[322878455,1713463846166,-1213.9838825,0.00030419,2]
[322878456,1713463846176,-166.666666,0.00030603,2]
[322878457,1713463846185,-300.0,0.000309,3]
[322878458,1713463846195,-299.8,0.00031,3]
[322878459,1713463846205,-150.0,0.000315,8]
[322878460,1713463846214,-160.0,0.00031517,3]
[322878461,1713463846224,-1213.9838825,0.0003166,2]
[322878462,1713463846233,-150.95471359,0.00031684,2]
[322878463,1713463846242,-306.6651876,0.00031781,2]
[322878464,1713463846251,-300.0,0.000319,4]
[322878465,1713463846261,-2181.91228349,0.00031988,4]
[322878466,1713463846271,-259.5893932,0.00031989,4]
[322878467,1713463846280,-587.0,0.00031994,2]
[322878468,1713463846291,-300.0,0.00032,4]
[322878469,1713463846300,-191.23373754,0.00032,4]
[322878470,1713463846309,-160.0,0.00032133,4]
[322878471,1713463846319,-153.0,0.00032192,2]
[322878472,1713463846329,-153.0,0.00032192,2]
[322878473,1713463846341,-153.0,0.00032192,2]
[322878474,1713463846350,-436.534692,0.00032192,2]
[322878475,1713463846361,-153.0,0.00032192,2]
[322878476,1713463846370,-153.0,0.00032192,2]
[322878477,1713463846380,-153.0,0.00032192,2]
[322878478,1713463846389,-153.0,0.00032192,2]
[322878479,1713463846399,-153.0,0.00032192,2]
[322878480,1713463846410,-153.0,0.00032192,2]
[322878481,1713463846419,-153.0,0.00032192,2]
[322878482,1713463846428,-153.0,0.00032192,2]
[322878483,1713463846437,-153.0,0.00032192,2]
[322878484,1713463846447,-153.0,0.00032192,2]
[322878485,1713463846457,-153.0,0.00032192,2]
[322878486,1713463846467,-153.0,0.00032192,2]
[322878487,1713463846476,-157.65740478,0.00032669,3]
[322878488,1713463846486,-160.0,0.0003275,5]
[322878489,1713463846497,-7727.2,0.00032876,4]
[322878490,1713463846508,-7727.2,0.00032876,4]
[322878491,1713463846518,-7727.2,0.00032876,4]
[322878492,1713463846528,-300.0,0.000329,5]
[322878493,1713463846537,-1213.9838825,0.000329,2]
[322878494,1713463846546,-238.7010642,0.00032986,2]
[322878495,1713463846556,-153.0,0.00032986,2]
[322878496,1713463846565,-153.0,0.00032986,2]
[322878497,1713463846574,-153.0,0.00032986,2]
[322878498,1713463846586,-153.0,0.00032986,2]
[322878499,1713463846598,-153.0,0.00032986,2]
[322878500,1713463846608,-1210.85594295,0.00032989,7]
[322878501,1713463846618,-7397.39419664,0.00032999,4]
[322878591,1713464421650,5407.97,0.0002518,30]
[322878668,1713465032015,-154.95351395,0.00025178,2]
[322878670,1713465032025,-1001.55663859,0.00025179,2]
[322878773,1713465038049,-419.46578638,0.00025179,2]
[322878774,1713465038159,-664.97636034,0.00025179,2]
[322878775,1713465038169,-355.70275153,0.0002518,2]
[322879098,1713466232281,-308.19902292,0.00024856,2]
[322879099,1713466232291,-154.95351395,0.00024856,2]
[322879100,1713466232301,-300.0,0.00024857,2]
[322879101,1713466232311,-164.76018257,0.00024857,2]
[322879187,1713466240381,-135.23981743,0.00024857,2]
[322879189,1713466240390,-1086.80536715,0.00024858,2]
[322879191,1713466240399,-5077.95481542,0.00024858,2]
[322879438,1713466797403,-920.0,0.00033,120]
[322879511,1713467432538,-1086.80536715,0.00022965,2]
[322879512,1713467432548,-289.12236722,0.00022965,2]
[322879721,1713467438515,-262.3827165,0.00022965,2]
[322879730,1713467440501,-4076.3447162,0.00022965,2]
[322880153,1713468632640,-1086.3237768,0.00021939,2]
[322880274,1713468640783,-0.48159035,0.00021939,2]
[322880275,1713468640793,-200.0,0.0002194,2]
[322880276,1713468640803,-1799.51840965,0.00022471,2]
[322880351,1713468682225,150.0,0.00020371,2]
[322880507,1713469690085,935.0791101,0.00020347,2]
[322880536,1713469831834,-373.13614247,0.00021075,2]
[322880537,1713469831846,-713.66922468,0.00021075,2]
[322880538,1713469831857,-179.36474,0.00021076,2]
[322880539,1713469831867,-613.24279056,0.00021248,2]
[322880540,1713469831876,-246.71803773,0.00021342,2]
[322880541,1713469831887,-268.82998816,0.00021342,2]
[322880542,1713469831916,-1662.26010553,0.00021342,2]
[322880715,1713469837808,-315.65386608,0.00021341,2]
[322880716,1713469837877,-184.34613392,0.00021341,2]
[322880717,1713469837886,-135.53504727,0.00021341,2]
[322880718,1713469837898,-139.99061473,0.00021341,2]
[322880719,1713469837907,-1404.14327172,0.00021342,2]
[322880720,1713469837941,-303.40034304,0.00021342,2]
[322881275,1713469845938,-1078.01496724,0.00021342,2]
[322881673,1713471037983,-123.11470568,0.00021305,2]
[322881769,1713471040057,-652.16433056,0.00021305,2]
[322881819,1713471043141,-4837.27164,0.00021305,2]
[322882129,1713471104154,967.83526257,0.00020238,2]
[322882130,1713471182558,16057.19851658,0.00020238,2]
[322882132,1713471239883,1943.2804486,0.00020301,2]
[322882182,1713472216312,536.58744174,0.00020971,2]
[322882201,1713472232285,-519.40034216,0.00021066,2]
[322882204,1713472232294,-444.73646373,0.00021066,2]
[322882253,1713472240334,-2005.37482583,0.00021066,2]
[322882254,1713472240343,-623.20342483,0.00021067,2]
[322882255,1713472240352,-1086.80536715,0.00021067,2]
[322882256,1713472240361,-31268.344993,0.00021068,2]
[322882257,1713472240370,-300.0,0.00021069,2]
[322882258,1713472240379,-300.0,0.00021069,2]
[322882259,1713472240389,-80000.0,0.00021069,2]
[322882260,1713472240398,-378.52419869,0.00021069,2]
[322882261,1713472240407,-4085.49379708,0.00021072,2]
[322882262,1713472240417,-391.715099,0.00021177,2]
[322882263,1713472240426,-391.715099,0.00021177,2]
[322882264,1713472240436,-391.715099,0.0002118,2]
[322882265,1713472240445,-391.715099,0.0002118,2]
[322882266,1713472240454,-391.715099,0.0002129,2]
[322882267,1713472240463,-391.715099,0.0002129,2]
[322882268,1713472240473,-391.715099,0.00021293,2]
[322882269,1713472240484,-391.715099,0.00021293,2]
[322882270,1713472240493,-155.13889495,0.00021301,2]
[322882271,1713472240502,-391.715099,0.00021301,2]
[322882272,1713472240511,-391.715099,0.00021301,2]
[322882273,1713472240520,-355.43543557,0.00021305,2]
[322882274,1713472240529,-155.44117756,0.00021305,2]
[322882275,1713472240538,-189.439445,0.00021499,2]
[322882276,1713472240547,-157.65740479,0.00022246,2]
[322882277,1713472240555,-391.715099,0.00022246,2]
[322882278,1713472240565,-391.715099,0.00022246,2]
[322882279,1713472240574,-391.715099,0.00022246,2]
[322882280,1713472240583,-391.715099,0.00022246,2]
[322882281,1713472240592,-950.0,0.000229,2]
[322882282,1713472240601,-391.715099,0.000229,2]
[322882283,1713472240610,-391.715099,0.000229,2]
[322882284,1713472240830,-420.0,0.00022917,2]
[322882285,1713472240839,-391.715099,0.0002303,2]
[322882286,1713472240849,-391.715099,0.0002303,2]
[322882287,1713472240858,-420.0,0.00023176,2]
[322882288,1713472240867,-391.715099,0.00023293,2]
[322882289,1713472240876,-391.715103,0.00023293,2]
[322882290,1713472240885,-179.364738,0.00023375,2]
[322882291,1713472240895,-249.170669,0.00024658,2]
[322882292,1713472240903,-203.10667868,0.00024869,2]
[322882293,1713472240912,-587.0,0.00024927,2]
[322882294,1713472240922,-587.0,0.00025493,2]
[322882295,1713472240931,-536.5874417,0.00025789,2]
[322882296,1713472240941,-399.9,0.00026,2]
[322882297,1713472240951,-510.78993135,0.00026963,2]
[322882298,1713472240960,-277.20767233,0.00026963,2]
[322882299,1713472240969,-189.66405816,0.00026963,2]
[322882300,1713472240978,-9985.5,0.0002698,3]
[322882301,1713472241028,-8321.25,0.0002698,3]
[322882302,1713472241038,-14379.11,0.0002699,3]
[322882303,1713472241049,-11982.59,0.0002699,3]
[322882304,1713472241059,-300.0,0.00027,2]
[322882305,1713472241068,-4574.99831121,0.00027,2]
[322882526,1713472243311,-3340.74489897,0.00027,2]
[322882528,1713472243321,-8508.54349294,0.00027,2]
[322882530,1713472243331,-823.0,0.00027113,2]
[322882532,1713472243340,-491.176743,0.00027397,2]
[322882534,1713472243351,-181.190075,0.00027397,2]
[322882536,1713472243361,-419.347758,0.00027397,2]
[322882538,1713472243370,-166.666666,0.00027397,2]
[322882540,1713472243382,-822.3800135,0.00027397,2]
[322882542,1713472243392,-755.62077021,0.000274,2]
[322882544,1713472243402,-264.05985318,0.0002797,2]
[322882546,1713472243412,-361.05831142,0.00027998,2]
[322882548,1713472243423,-365.78751188,0.00027998,2]
[322882550,1713472243432,-470.37808979,0.00027998,2]
[322882552,1713472243442,-207.6790767,0.00027998,2]
[322882554,1713472243452,-180.13273192,0.00027998,2]
[322882557,1713472243462,-300.0,0.00028,2]
[322882559,1713472243471,-630.72413318,0.00028034,2]
[322882561,1713472243482,-166.666666,0.00028038,2]
[322882563,1713472243492,-823.0,0.00028043,2]
[322882565,1713472243502,-166.666666,0.00028679,2]
[322882567,1713472243512,-300.0,0.00029,2]
[322882570,1713472243521,-166.666666,0.00029321,2]
[322882572,1713472243530,-1152.0,0.00029491,2]
[322882574,1713472243539,-166.666666,0.00029962,2]
[322882576,1713472243548,-154.95351395,0.0003,4]
[322882578,1713472243557,-16000.0,0.0003,2]
[322882580,1713472243567,-431.0,0.0003,2]
[322882582,1713472243576,-300.0,0.0003,2]
[322882584,1713472243585,-312.0,0.0003,2]
[322882586,1713472243594,-3640.73704589,0.0003,2]
[322882588,1713472243604,-320.52850985,0.0003,30]
[322882590,1713472243613,-166.666666,0.00030603,2]
[322882592,1713472243623,-536.5874417,0.00030606,5]
[322882594,1713472243638,-1152.0,0.00030847,2]
[322882596,1713472243646,-502.7,0.00031,2]
[322882598,1713472243655,-300.0,0.00031,3]
[322882600,1713472243665,-151.0,0.00031602,2]
[322882602,1713472243674,-160.0,0.0003164,3]
[322882604,1713472243682,-1000.0,0.00032,2]
[322882606,1713472243691,-2452.45948586,0.00032,3]
[322882875,1713473156260,236.29204197,0.00019,2]
[322882878,1713473193786,692.13548975,0.00019,2]
[322882879,1713473195179,154.92253873,0.00019,2]
[322882880,1713473196254,154.92253873,0.00019,2]
[322882881,1713473197417,16076.25580417,0.00019,2]
[322882882,1713473197873,154.92253873,0.00019,2]
[322882883,1713473198381,190.09531059,0.00019,2]
[322882884,1713473198663,197.49701762,0.00019,2]
[322882885,1713473201629,385.66913865,0.00019,2]
[322882886,1713473203943,195.04804089,0.00019,2]
[322882887,1713473207284,154.92253873,0.00019,2]
[322882888,1713473208951,154.92253873,0.00019,2]
[322882889,1713473210004,208.59832684,0.000189,2]
[322882890,1713473210266,154.92253873,0.00019,2]
[322882891,1713473211409,16076.25580417,0.00019,2]
[322882892,1713473212667,154.92253873,0.00019,2]
[322882893,1713473213785,692.13548975,0.00019,2]
[322882894,1713473215866,385.66913865,0.00019,2]
[322882895,1713473215894,198.60458448,0.00019,2]
[322882896,1713473216141,158.41275882,0.00019,2]
[322882897,1713473217179,191.27290549,0.00019,2]
[322882898,1713473218112,195.04804089,0.00019,2]
[322882899,1713473221426,154.92253873,0.00019,2]
[322882900,1713473226345,154.92253873,0.00019,2]
[322882901,1713473226889,235.12902508,0.00019,2]
[322882902,1713473229956,692.13548975,0.00019,2]
[322882903,1713473230689,154.92253873,0.00019,2]
[322882904,1713473231571,16076.25580417,0.00019,2]
[322882905,1713473232113,195.04804089,0.00019,2]
[322882906,1713473236159,154.92253873,0.00019,2]
[322882907,1713473237870,385.66913865,0.00019,2]
[322882908,1713473239231,158.77014744,0.00019,2]
[322882909,1713473242883,548.26955098,0.00018999,2]
[322882911,1713473246667,154.92253873,0.00019,2]
[322882912,1713473247798,692.13548975,0.00019,2]
[322882913,1713473248278,154.92253873,0.00019,2]
[322882914,1713473252176,195.04804089,0.00019,2]
[322882915,1713473253415,16076.25580417,0.00019,2]
[322882916,1713473257868,385.66913865,0.00019,2]
[322882917,1713473258146,154.92253873,0.00019,2]
[322882918,1713473266664,154.92253873,0.00019,2]
[322882919,1713473267809,444.07797533,0.00019,2]
[322882920,1713473270267,154.92253873,0.00019,2]
[322882921,1713473272157,195.04804089,0.00019,2]
[322882922,1713473273422,16076.25580417,0.00019,2]
[322882923,1713473273895,382.9426367,0.00019,2]
[322882924,1713473276193,154.92253873,0.00019,2]
[322882925,1713473288125,195.04804089,0.00019,2]
[322882926,1713473288280,154.92253873,0.00019,2]
[322882927,1713473288687,154.92253873,0.00019,2]
[322882928,1713473289458,6249.20826093,0.00019,2]
[322882929,1713473292156,154.92253873,0.00019,2]
[322882930,1713473304681,220.62938936,0.00019,2]
[322882931,1713473306288,154.92253873,0.00019,2]
[322882932,1713473312147,265.7919391,0.00019,2]
[322882933,1713473312174,302.06953042,0.00019,2]
[322882934,1713473320273,154.92253873,0.00019,2]
[322882935,1713473342277,282.74549512,0.00019,2]
[322882988,1713473432491,-1086.80536715,0.00022592,2]
[322882990,1713473432500,-623.20342483,0.00022593,2]
[322882992,1713473432509,-179.364738,0.00022594,2]
[322882994,1713473432518,-2450.11128956,0.00022891,2]
[322882996,1713473432527,-300.0,0.00022891,2]